fUST/lending_fUST_20241110
["ID","MTS","AMOUNT","RATE_DAILY","PERIOD"]
[341740190,1731171039302,-500.0,0.00030136,2]
[341740191,1731171039311,-500.0,0.00030136,2]
[341740192,1731171039320,-500.0,0.00030136,2]
[341740193,1731171039329,-500.0,0.00030136,2]
[341740194,1731171039338,-500.0,0.00030136,2]
[341740195,1731171039348,-500.0,0.00030136,2]
[341740196,1731171039357,-500.0,0.00030136,2]
[341740197,1731171039366,-502.91477559,0.00030136,2]
[341740198,1731171039375,-500.0,0.00030136,2]
[341740199,1731171039384,-500.0,0.00030136,2]
[341740200,1731171039392,-500.0,0.00030136,2]
[341740201,1731171039402,-500.0,0.00030136,2]
[341740202,1731171039411,-500.0,0.00030136,2]
[341740203,1731171039420,-500.0,0.00030136,2]
[341740204,1731171039429,-500.0,0.00030136,7]
[341740205,1731171039438,-500.0,0.00030136,2]
[341740206,1731171039447,-500.0,0.00030136,2]
[341740207,1731171039457,-582.32619829,0.00030136,2]
[341740208,1731171039466,-500.0,0.00030136,2]
[341740209,1731171039475,-500.0,0.00030136,2]
[341740210,1731171039485,-500.0,0.00030136,2]
[341740211,1731171039493,-500.0,0.00030136,2]
[341740212,1731171039503,-500.0,0.00030136,2]
[341740213,1731171039513,-500.0,0.00030136,2]
[341740214,1731171039521,-500.0,0.00030136,2]
[341740215,1731171039531,-500.0,0.00030136,2]
[341740216,1731171039539,-500.0,0.00030136,2]
[341740217,1731171039548,-500.0,0.00030136,2]
[341740218,1731171039558,-982.59,0.00030136,2]
[341740219,1731171039568,-500.0,0.00030136,2]
[341740220,1731171039577,-500.0,0.00030136,2]
[341740221,1731171039586,-500.0,0.00030136,2]
[341740222,1731171039595,-574.29465316,0.00030136,2]
[341740223,1731171039604,-500.0,0.00030136,2]
[341740224,1731171039613,-500.0,0.00030136,2]
[341740225,1731171039622,-500.0,0.00030136,2]
[341740226,1731171039631,-500.0,0.00030136,2]
[341740227,1731171039640,-500.0,0.00030136,2]
[341740228,1731171039649,-500.0,0.00030136,2]
[341740229,1731171039657,-500.0,0.00030136,2]
[341740230,1731171039666,-500.0,0.00030136,2]
[341740231,1731171039676,-500.0,0.00030136,2]
[341740232,1731171039685,-500.0,0.00030136,2]
[341740233,1731171039694,-500.0,0.00030136,2]
[341740234,1731171039703,-500.0,0.00030136,2]
[341740235,1731171039712,-500.0,0.00030136,2]
[341740236,1731171039721,-500.0,0.00030136,2]
[341740237,1731171039730,-500.0,0.00030136,2]
[341740238,1731171039740,-500.0,0.00030136,2]
[341740239,1731171039749,-323.58959545,0.00030136,2]
[341740240,1731171039758,-500.0,0.00030136,2]
[341740241,1731171039767,-500.0,0.00030136,2]
[341740242,1731171039776,-500.0,0.00030136,2]
[341740243,1731171039786,-500.0,0.00030136,2]
[341740244,1731171039795,-502.81814686,0.00030136,2]
[341740245,1731171039805,-502.9777247,0.00030136,2]
[341740246,1731171039814,-500.0,0.00030136,2]
[341740247,1731171039825,-500.0,0.00030136,2]
[341740248,1731171039834,-500.0,0.00030136,2]
[341740249,1731171039843,-500.0,0.00030136,2]
[341740250,1731171039853,-500.0,0.00030136,2]
[341740251,1731171039862,-500.0,0.00030136,2]
[341740252,1731171039872,-500.0,0.00030136,2]
[341740253,1731171039881,-500.0,0.00030136,2]
[341740254,1731171039890,-500.0,0.00030136,2]
[341740255,1731171039899,-485.78,0.00030136,2]
[341740256,1731171039907,-188.32,0.00030136,2]
[341740257,1731171039916,-500.0,0.00030136,2]
[341740258,1731171039925,-500.0,0.00030136,2]
[341740259,1731171039934,-500.0,0.00030136,2]
[341740260,1731171039943,-500.0,0.00030136,2]
[341740261,1731171039952,-500.0,0.00030136,2]
[341740262,1731171039962,-500.0,0.00030136,2]
[341740263,1731171039971,-500.0,0.00030136,2]
[341740264,1731171039980,-622.9,0.00030136,2]
[341740265,1731171039989,-3477.06,0.00030136,2]
[341740266,1731171039998,-500.0,0.00030136,2]
[341740267,1731171040008,-500.0,0.00030136,2]
[341740268,1731171040016,-500.0,0.00030136,2]
[341740269,1731171040025,-407.22,0.00030136,2]
[341740270,1731171040034,-500.0,0.00030136,2]
[341740271,1731171040043,-500.0,0.00030136,2]
[341740272,1731171040055,-500.0,0.00030136,2]
[341740273,1731171040065,-500.0,0.00030136,2]
[341740274,1731171040073,-500.0,0.00030136,2]
[341740275,1731171040082,-586.34610552,0.00030136,2]
[341740276,1731171040091,-500.0,0.00030136,2]
[341740277,1731171040101,-503.78889593,0.00030136,2]
[341740278,1731171040110,-500.0,0.00030136,2]
[341740279,1731171040119,-500.0,0.00030136,2]
[341740280,1731171040130,-500.0,0.00030136,2]
[341740281,1731171040140,-256.79224732,0.00030137,2]
[341740282,1731171040149,-500.0,0.00030166,2]
[341740283,1731171040158,-158.82636869,0.00030167,2]
[341740284,1731171040168,-150.25186792,0.0003031,2]
[341740286,1731171040177,-515.57111743,0.0003035,2]
[341740288,1731171040186,-500.0,0.0003035,5]
[341740289,1731171040194,-331.57,0.0003041,2]
[341740290,1731171040203,-500.0,0.0003041,2]
[341740291,1731171040212,-162.84195946,0.0003041,2]
[341740292,1731171040221,-500.0,0.0003041,2]
[341740294,1731171040230,-316.15468892,0.0003041,2]
[341740295,1731171040239,-500.0,0.0003041,2]
[341740297,1731171040248,-500.0,0.0003041,2]
[341740298,1731171040258,-500.0,0.0003041,2]
[341740299,1731171040267,-500.0,0.0003041,2]
[341740300,1731171040276,-242.03915582,0.0003041,2]
[341740301,1731171040285,-500.0,0.0003041,2]
[341740302,1731171040294,-500.0,0.0003041,2]
[341740303,1731171040303,-500.0,0.0003041,2]
[341740304,1731171040312,-982.59,0.0003041,2]
[341740305,1731171040322,-500.0,0.0003041,2]
[341740306,1731171040331,-490.87,0.0003041,2]
[341740307,1731171040340,-500.0,0.0003041,2]
[341740308,1731171040349,-500.0,0.0003041,2]
[341740309,1731171040359,-500.0,0.0003041,2]
[341740310,1731171040367,-500.0,0.0003041,2]
[341740311,1731171040377,-502.66875593,0.0003041,2]
[341740312,1731171040386,-500.0,0.0003041,2]
[341740313,1731171040395,-500.0,0.0003041,2]
[341740314,1731171040404,-181.11,0.0003041,2]
[341740315,1731171040413,-3477.06,0.0003041,2]
[341740316,1731171040422,-500.0,0.0003041,2]
[341740317,1731171040429,-500.0,0.0003041,2]
[341740318,1731171040438,-500.0,0.0003041,2]
[341740319,1731171040447,-160.285,0.0003059,2]
[341740321,1731171040457,-1056.5,0.00030674,10]
[341740323,1731171040466,-1925.5,0.00030674,10]
[341740324,1731171040475,-500.0,0.00030683,2]
[341740325,1731171040485,-620.66139963,0.00030683,2]
[341740326,1731171040494,-183.90165101,0.00030683,2]
[341740327,1731171040502,-500.0,0.00030684,2]
[341740328,1731171040511,-500.0,0.00030684,2]
[341740329,1731171040520,-166.11,0.00030684,2]
[341740330,1731171040529,-500.0,0.00030684,2]
[341740331,1731171040538,-325.15,0.00030684,2]
[341740332,1731171040547,-531.07,0.00030684,2]
[341740333,1731171040557,-500.0,0.00030684,2]
[341740334,1731171040566,-982.59,0.00030684,2]
[341740335,1731171040575,-500.0,0.00030684,2]
[341740336,1731171040584,-450.68596909,0.00030684,2]
[341740337,1731171040593,-194.59,0.00030684,2]
[341740338,1731171040603,-500.0,0.00030684,2]
[341740339,1731171040612,-500.0,0.00030684,2]
[341740340,1731171040621,-500.0,0.00030684,2]
[341740341,1731171040631,-247.2,0.00030684,2]
[341740342,1731171040640,-3477.06,0.00030684,2]
[341740343,1731171040649,-343.19,0.00030684,2]
[341740344,1731171040658,-500.0,0.00030684,2]
[341740345,1731171040667,-500.0,0.00030684,2]
[341740346,1731171040676,-184.71565318,0.00030792,2]
[341740347,1731171040685,-464.94,0.00030958,2]
[341740348,1731171040694,-500.0,0.00030958,2]
[341740349,1731171040703,-500.0,0.00030958,2]
[341740350,1731171040712,-500.0,0.00030958,2]
[341740351,1731171040721,-982.59,0.00030958,2]
[341740352,1731171040730,-500.0,0.00030958,2]
[341740353,1731171040739,-234.81,0.00030958,2]
[341740354,1731171040748,-337.39896433,0.00030958,2]
[341740355,1731171040757,-581.89,0.00030958,2]
[341740356,1731171040767,-3477.06,0.00030958,2]
[341740357,1731171040775,-500.0,0.00030958,2]
[341740358,1731171040784,-388.21557379,0.00030958,2]
[341740359,1731171040795,-1000.0,0.00031,120]
[341740360,1731171040804,-500.0,0.00031221,2]
[341740361,1731171040814,-4186.48,0.00031221,120]
[341740362,1731171040823,-595.6,0.00031232,2]
[341740363,1731171040832,-456.39,0.00031232,2]
[341740364,1731171040842,-500.0,0.00031232,10]
[341740365,1731171040852,-500.0,0.00031232,2]
[341740366,1731171040861,-982.59,0.00031232,2]
[341740367,1731171040870,-500.0,0.00031232,2]
[341740368,1731171040879,-3477.06,0.00031232,2]
[341740369,1731171040888,-510.28,0.00031232,2]
[341740370,1731171040897,-306.71095064,0.00031453,2]
[341740371,1731171040908,-25000.0,0.000315,2]
[341740372,1731171040917,-25000.0,0.000315,3]
[341740373,1731171040926,-25000.0,0.000315,4]
[341740374,1731171040935,-29478.42130351,0.000315,5]
[341740375,1731171040945,-224.01,0.00031506,2]
[341740376,1731171040954,-982.59,0.00031506,2]
[341740377,1731171040963,-500.0,0.00031506,2]
[341740378,1731171041057,-3477.06,0.00031506,2]
[341740379,1731171041066,-175.580602,0.00031546,2]
[341740380,1731171041075,-1000.0,0.00031548,2]
[341740381,1731171041084,-184.71565318,0.00031548,2]
[341740382,1731171041093,-500.0,0.00031599,2]
[341740383,1731171041102,-500.0,0.000316,36]
[341740384,1731171041111,-379.8,0.000316,31]
[341740385,1731171041120,-379.8,0.000316,31]
[341740386,1731171041130,-379.8,0.000316,31]
[341740387,1731171041139,-379.8,0.000316,31]
[341740388,1731171041148,-379.8,0.000316,31]
[341740389,1731171041158,-379.8,0.000316,31]
[341740390,1731171041167,-379.8,0.000316,31]
[341740391,1731171041176,-379.8,0.000316,31]
[341740392,1731171041185,-379.8,0.000316,31]
[341740393,1731171041194,-379.8,0.000316,31]
[341740394,1731171041203,-379.8,0.000316,31]
[341740395,1731171041212,-379.8,0.000316,31]
[341740396,1731171041220,-237.64579739,0.00031647,2]
[341740397,1731171041229,-500.0,0.00031647,2]
[341740398,1731171041238,-500.0,0.00031647,2]
[341740399,1731171041247,-604.68047665,0.00031647,2]
[341740400,1731171041256,-166.35205817,0.00031647,2]
[341740401,1731171041265,-500.0,0.00031647,2]
[341740402,1731171041274,-500.0,0.00031647,2]
[341740403,1731171041283,-500.0,0.00031647,2]
[341740404,1731171041292,-500.0,0.00031647,2]
[341740405,1731171041301,-500.0,0.00031647,2]
[341740406,1731171041311,-500.0,0.00031647,2]
[341740407,1731171041320,-500.0,0.00031647,2]
[341740408,1731171041329,-500.0,0.00031647,2]
[341740409,1731171041337,-538.51,0.00031647,2]
[341740410,1731171041346,-600.0,0.00031647,2]
[341740411,1731171041355,-688.77558036,0.00031648,2]
[341740412,1731171041364,-1373.48180684,0.00031648,2]
[341740413,1731171041373,-205.38636394,0.00031648,7]
[341740414,1731171041382,-205.38636394,0.00031648,7]
[341740415,1731171041391,-2388309.35378582,0.00031648,10]
[341740416,1731171041461,-399.82719863,0.00031648,10]
[341740417,1731171041507,-500.0,0.00030136,2]
[341740418,1731171041516,-1470.94423712,0.00031648,10]
[341740483,1731171046722,-428167.77330868,0.00031648,10]
[341740568,1731171450440,173.488972,0.00013973,2]
[341740571,1731171928462,1150.95,0.00031648,30]
[341740603,1731172231884,-694.44444444,0.00025057,2]
[341740605,1731172231894,-4159.9347607,0.00027969,2]
[341740607,1731172231904,-222.857,0.00028415,2]
[341740609,1731172231914,-659.72,0.000286,2]
[341740611,1731172231924,-166.601458,0.00028673,2]
[341740612,1731172231934,-681.196459,0.00029978,2]
[341740613,1731172231944,-184.71565318,0.00030036,2]
[341740614,1731172231954,-400.0,0.00030132,2]
[341740615,1731172231964,-189.0,0.00030132,2]
[341740616,1731172231973,-240.0,0.00030136,2]
[341740617,1731172231983,-500.0,0.00030136,2]
[341740618,1731172231992,-632.48360302,0.00030136,2]
[341740619,1731172232003,-500.0,0.00030136,2]
[341740620,1731172232013,-389.1628194,0.00030136,2]
[341740621,1731172232023,-309.19728738,0.00030136,2]
[341740622,1731172232032,-480.44,0.00030136,2]
[341740623,1731172232043,-500.0,0.00030136,2]
[341740624,1731172232052,-502.17802771,0.00030136,2]
[341740625,1731172232062,-500.0,0.00030136,2]
[341740626,1731172232072,-500.0,0.00030136,2]
[341740627,1731172232082,-500.0,0.00030136,2]
[341740628,1731172232091,-500.0,0.00030136,2]
[341740629,1731172232101,-500.0,0.00030136,7]
[341740630,1731172232111,-500.0,0.00030136,2]
[341740631,1731172232121,-500.0,0.00030136,2]
[341740632,1731172232131,-597.23,0.00030136,2]
[341740633,1731172232140,-598.63579293,0.00030136,2]
[341740634,1731172232149,-189.22860976,0.00030136,2]
[341740635,1731172232159,-509.28431928,0.00030136,2]
[341740636,1731172232168,-500.0,0.00030136,2]
[341740637,1731172232177,-500.0,0.00030136,2]
[341740638,1731172232187,-505.94519252,0.00030136,2]
[341740639,1731172232196,-518.94122464,0.00030136,2]
[341740640,1731172232205,-173.6,0.00030136,2]
[341740641,1731172232215,-500.0,0.00030136,2]
[341740642,1731172232224,-500.0,0.00030136,2]
[341740643,1731172232233,-500.0,0.00030136,2]
[341740644,1731172232243,-500.0,0.00030136,2]
[341740645,1731172232357,-243.48057354,0.00030136,2]
[341740646,1731172232367,-500.0,0.00030136,2]
[341740647,1731172232376,-500.88636485,0.00030136,2]
[341740648,1731172232386,-504.38450894,0.00030136,2]
[341740649,1731172232395,-507.35846206,0.00030136,2]
[341740650,1731172232404,-505.41939247,0.00030136,2]
[341740651,1731172232414,-500.0,0.00030136,2]
[341740652,1731172232423,-504.71748504,0.00030136,2]
[341740653,1731172232433,-501.18124327,0.00030136,2]
[341740654,1731172232442,-500.0,0.00030136,2]
[341740655,1731172232452,-500.0,0.00030136,2]
[341740656,1731172232461,-500.0,0.00030136,2]
[341740657,1731172232472,-500.0,0.00030136,2]
[341740658,1731172232482,-254.37968689,0.00030136,2]
[341740659,1731172232493,-500.0,0.00030136,2]
[341740660,1731172232502,-500.0,0.00030136,2]
[341740661,1731172232512,-500.0,0.00030136,2]
[341740662,1731172232522,-500.0,0.00030136,2]
[341740663,1731172232531,-500.0,0.00030136,2]
[341740664,1731172232541,-338.85056087,0.00030136,2]
[341740665,1731172232551,-500.0,0.00030136,2]
[341740666,1731172232561,-500.0,0.00030136,2]
[341740667,1731172232571,-500.0,0.00030136,2]
[341740668,1731172232580,-500.0,0.00030136,2]
[341740669,1731172232589,-500.0,0.00030136,2]
[341740670,1731172232599,-452.76,0.00030136,2]
[341740671,1731172232608,-500.0,0.00030136,2]
[341740672,1731172232617,-500.0,0.00030136,2]
[341740673,1731172232626,-365.72,0.00030136,2]
[341740674,1731172232635,-368.17,0.00030136,2]
[341740675,1731172232645,-500.0,0.00030136,2]
[341740676,1731172232654,-504.43599215,0.00030136,2]
[341740677,1731172232664,-155.74,0.00030136,2]
[341740678,1731172232673,-500.0,0.00030136,2]
[341740679,1731172232683,-926.09,0.00030136,2]
[341740680,1731172232693,-500.0,0.00030136,2]
[341740681,1731172232703,-500.0,0.00030136,2]
[341740682,1731172232712,-500.0,0.00030136,2]
[341740683,1731172232721,-500.0,0.00030136,2]
[341740684,1731172232731,-500.0,0.00030136,2]
[341740685,1731172232741,-500.0,0.00030136,2]
[341740686,1731172232751,-500.0,0.00030136,2]
[341740687,1731172232760,-507.5974139,0.00030136,2]
[341740688,1731172232779,-501.461888,0.00030136,2]
[341740689,1731172232790,-500.0,0.00030136,2]
[341740690,1731172232801,-500.0,0.00030136,2]
[341740691,1731172232811,-500.0,0.00030136,2]
[341740692,1731172232821,-500.0,0.00030136,2]
[341740693,1731172232831,-500.0,0.00030136,2]
[341740694,1731172232842,-500.0,0.00030136,2]
[341740695,1731172232852,-503.59850761,0.00030136,2]
[341740696,1731172232863,-726.16,0.00030136,2]
[341740697,1731172232873,-2773.5,0.00030136,2]
[341740698,1731172232883,-163.49657588,0.00030136,2]
[341740699,1731172232893,-500.0,0.00030136,2]
[341740700,1731172232903,-500.0,0.00030136,2]
[341740701,1731172232913,-500.0,0.00030136,2]
[341740702,1731172232923,-500.0,0.00030136,2]
[341740703,1731172232933,-201.96,0.00030136,2]
[341740704,1731172232943,-248.37359609,0.00030137,2]
[341740705,1731172232953,-158.82636868,0.00030167,2]
[341740706,1731172232963,-500.0,0.00030362,5]
[341740707,1731172232973,-192.68,0.00030409,26]
[341740708,1731172232983,-726.16,0.00030409,2]
[341740709,1731172232992,-500.0,0.0003041,2]
[341740710,1731172233002,-500.0,0.0003041,2]
[341740711,1731172233012,-224.01,0.0003041,2]
[341740712,1731172233022,-205.16476165,0.0003041,2]
[341740713,1731172233031,-500.0,0.0003041,2]
[341740714,1731172233042,-500.0,0.0003041,2]
[341740715,1731172233053,-500.0,0.0003041,2]
[341740716,1731172233063,-397.3344304,0.0003041,2]
[341740717,1731172233073,-570.15,0.0003041,2]
[341740718,1731172233083,-500.0,0.0003041,2]
[341740719,1731172233093,-926.09,0.0003041,2]
[341740720,1731172233103,-500.0,0.0003041,2]
[341740721,1731172233113,-500.0,0.0003041,2]
[341740722,1731172233123,-2773.5,0.0003041,2]
[341740723,1731172233132,-500.0,0.0003041,2]
[341740724,1731172233142,-500.0,0.00030684,2]
[341740725,1731172233153,-500.0,0.00030684,2]
[341740726,1731172233162,-500.0,0.00030684,2]
[341740727,1731172233172,-500.0,0.00030684,2]
[341740728,1731172233182,-926.09,0.00030684,2]
[341740729,1731172233192,-2773.5,0.00030684,2]
[341740730,1731172233202,-319.28,0.00030684,2]
[341740731,1731172233211,-160.232,0.000309,2]
[341740732,1731172233220,-500.0,0.00030957,2]
[341740733,1731172233229,-353.81553602,0.00030958,2]
[341740734,1731172233239,-500.0,0.00030958,2]
[341740735,1731172233249,-926.09,0.00030958,2]
[341740736,1731172233259,-2773.5,0.00030958,2]
[341740737,1731172233269,-726.16,0.00031231,2]
[341740738,1731172233279,-500.0,0.00031232,10]
[341740739,1731172233289,-500.0,0.00031232,2]
[341740740,1731172233300,-926.09,0.00031232,2]
[341740741,1731172233309,-2773.5,0.00031232,2]
[341740742,1731172233319,-9059.04185695,0.00031333,2]
[341740743,1731172233338,-15206.4,0.00031333,2]
[341740744,1731172233350,-1351.38478922,0.00031333,2]
[341740755,1731172237815,-500.0,0.00030136,2]
[341740756,1731172237825,-161.26821239,0.0003034,2]
[341740757,1731172237835,-500.0,0.0003034,5]
[341740758,1731172237844,-500.0,0.0003034,5]
[341740759,1731172237854,-500.0,0.0003034,2]
[341740760,1731172237863,-55135.78599955,0.00031333,2]
[341740761,1731172237873,-151.0,0.00031363,7]
[341740762,1731172237883,-12264.66719734,0.00031411,2]
[341740763,1731172237892,-400.0,0.0003143,3]
[341740764,1731172237901,-1604.58,0.00031496,10]
[341740765,1731172237911,-500.0,0.00031506,2]
[341740766,1731172237921,-926.09,0.00031506,2]
[341740767,1731172237931,-2773.5,0.00031506,2]
[341740768,1731172237940,-333.82,0.00031537,3]
[341740769,1731172237950,-173.488972,0.00031546,2]
[341740770,1731172237959,-726.16,0.00031546,2]
[341740771,1731172237969,-726.16,0.00031546,2]
[341740772,1731172237978,-17662.02600001,0.00031547,21]
[341740773,1731172237987,-242.59555001,0.00031547,2]
[341740774,1731172237997,-16678.21387111,0.00031547,3]
[341740775,1731172238006,-1000.0,0.00031548,2]
[341740776,1731172238015,-500.0,0.00031599,2]
[341740777,1731172238025,-150.112233,0.000316,17]
[341740778,1731172238034,-150.112233,0.000316,16]
[341740779,1731172238044,-379.8,0.000316,31]
[341740780,1731172238054,-379.8,0.000316,31]
[341740781,1731172238063,-379.8,0.000316,31]
[341740782,1731172238072,-379.8,0.000316,31]
[341740783,1731172238082,-379.8,0.000316,31]
[341740784,1731172238092,-379.8,0.000316,31]
[341740785,1731172238101,-379.8,0.000316,31]
[341740786,1731172238111,-379.8,0.000316,31]
[341740787,1731172238120,-379.8,0.000316,31]
[341740788,1731172238129,-379.8,0.000316,31]
[341740789,1731172238138,-379.8,0.000316,31]
[341740790,1731172238148,-379.8,0.000316,31]
[341740791,1731172238156,-150.112237,0.000316,13]
[341740792,1731172238166,-500.0,0.000316,36]
[341740793,1731172238175,-306.71095064,0.00031616,2]
[341740794,1731172238184,-4376.77,0.00031645,120]
[341740795,1731172238193,-152.675519,0.00031647,7]
[341740796,1731172238202,-151.0,0.00031647,7]
[341740797,1731172238211,-151.0,0.00031647,7]
[341740798,1731172238221,-726.16,0.00031647,2]
[341740799,1731172238230,-726.16,0.00031647,2]
[341740800,1731172238239,-726.16,0.00031647,2]
[341740801,1731172238250,-726.16,0.00031647,2]
[341740802,1731172238260,-726.16,0.00031647,2]
[341740803,1731172238269,-726.16,0.00031647,2]
[341740804,1731172238278,-726.16,0.00031647,2]
[341740805,1731172238288,-726.16,0.00031647,2]
[341740806,1731172238298,-726.16,0.00031647,2]
[341740807,1731172238307,-726.16,0.00031647,2]
[341740808,1731172238316,-726.16,0.00031647,2]
[341740809,1731172238325,-726.16,0.00031647,2]
[341740810,1731172238334,-726.16,0.00031647,2]
[341740811,1731172238344,-726.16,0.00031647,2]
[341740812,1731172238353,-726.16,0.00031647,2]
[341740813,1731172238363,-726.16,0.00031647,2]
[341740814,1731172238372,-726.16,0.00031647,2]
[341740815,1731172238381,-726.16,0.00031647,2]
[341740816,1731172238391,-726.32089572,0.00031647,2]
[341740817,1731172238400,-600.0,0.00031647,2]
[341740818,1731172238410,-2545.08520786,0.00031648,4]
[341740819,1731172238419,-151.0,0.00031648,7]
[341740820,1731172238429,-2626.34841864,0.00031648,10]
[341740821,1731172238438,-239.91711,0.00031648,7]
[341740822,1731172238447,-542.113231,0.00031648,7]
[341740823,1731172238456,-542.113231,0.00031648,7]
[341740824,1731172238466,-542.113231,0.00031648,7]
[341740825,1731172238479,-542.113231,0.00031648,7]
[341740826,1731172238488,-151.0,0.00031648,7]
[341740827,1731172238497,-151.0,0.00031648,7]
[341740828,1731172238506,-151.0,0.00031648,7]
[341740829,1731172238516,-626.689014,0.00031648,7]
[341740830,1731172238525,-626.689014,0.00031648,7]
[341740831,1731172238534,-626.689014,0.00031648,7]
[341740832,1731172238547,-626.689014,0.00031648,7]
[341740833,1731172238557,-205.38636394,0.00031648,7]
[341740834,1731172238566,-205.38636394,0.00031648,7]
[341740835,1731172238575,-500.0,0.00031648,2]
[341740836,1731172238585,-604.68047665,0.00031648,2]
[341740837,1731172238594,-500.0,0.00031648,2]
[341740838,1731172238603,-359.16255985,0.00031649,2]
[341740839,1731172238613,-151.0,0.00031649,7]
[341740840,1731172238624,-151.0,0.00031649,7]
[341740841,1731172238634,-151.0,0.00031649,7]
[341740842,1731172238644,-1373.48180684,0.00031649,2]
[341740843,1731172238654,-688.77558036,0.00031649,2]
[341740844,1731172238664,-2567570.0093826,0.00031649,10]
[341740845,1731172238934,-3025.29846829,0.00031649,10]
[341740890,1731172242887,-500.0,0.00030136,2]
[341740891,1731172242897,-151.0,0.00031649,7]
[341740892,1731172242907,-5382.00000001,0.00031649,10]
[341740901,1731172245855,-544.5,0.00031639,10]
[341740902,1731172245917,-792.65,0.00031639,10]
[341740903,1731172245928,-3024.1043309,0.00031649,10]
[341740904,1731172249544,170.614683,0.00013973,2]
[341740911,1731172957914,170.973969,0.00013973,2]
[341741038,1731173314636,429.60176473,0.000134,2]
[341741039,1731173320289,1967.88715635,0.00015,7]
[341741091,1731173434936,-309.81114554,0.00025,2]
[341741092,1731173434946,-448.01885446,0.00028241,2]
[341741093,1731173434957,-435.97894534,0.00028241,2]
[341741101,1731173437935,-4269.2445316,0.00028241,2]
[341741102,1731173437945,-164.967134,0.00028277,2]
[341741103,1731173437955,-685.62,0.000288,2]
[341741104,1731173437964,-171.399404,0.00028808,2]
[341741105,1731173437975,-226.141596,0.00029833,2]
[341741106,1731173437984,-428.00896794,0.00030036,2]
[341741107,1731173437993,-205.38636394,0.00030136,7]
[341741108,1731173438003,-192.68,0.00030136,25]
[341741109,1731173438013,-213.0,0.00030136,2]
[341741110,1731173438022,-501.91111301,0.00030136,2]
[341741111,1731173438032,-533.82413837,0.00030136,2]
[341741112,1731173438041,-575.94704247,0.00030136,2]
[341741113,1731173438050,-501.88367263,0.00030136,2]
[341741114,1731173438060,-372.96892118,0.00030136,2]
[341741115,1731173438069,-500.0,0.00030136,2]
[341741116,1731173438078,-501.92243894,0.00030136,2]
[341741117,1731173438087,-525.46017589,0.00030136,2]
[341741118,1731173438096,-500.88538668,0.00030136,2]
[341741119,1731173438105,-504.33118988,0.00030136,2]
[341741120,1731173438114,-501.50459473,0.00030136,2]
[341741121,1731173438123,-500.56074908,0.00030136,2]
[341741122,1731173438132,-500.0,0.00030136,2]
[341741123,1731173438141,-521.97492874,0.00030136,2]
[341741124,1731173438151,-500.0,0.00030136,2]
[341741125,1731173438160,-500.0,0.00030136,2]
[341741126,1731173438170,-512.42291146,0.00030136,2]
[341741127,1731173438178,-500.0,0.00030136,2]
[341741128,1731173438187,-531.46918885,0.00030136,2]
[341741129,1731173438197,-286.98057913,0.00030136,2]
[341741130,1731173438206,-500.0,0.00030136,2]
[341741131,1731173438215,-500.0,0.00030136,2]
[341741132,1731173438225,-534.36885004,0.00030136,2]